[Event "Sabato rapido!"]
[Site "Chess.com"]
[Date "2020.05.30"]
[Round "5"]
[White "pedrak"]
[Black "crippo"]
[Result "1-0"]
[WhiteElo "1699"]
[BlackElo "1563"]
[TimeControl "720+3"]
[EndTime "7:40:53 PDT"]
[Termination "pedrak ha vinto per scaccomatto"]

1. d4 {[%clk 0:12:02.9]} 1... d5 {[%clk 0:12:01.1]} 2. Nf3 {[%clk 0:12:03.8]}
2... Nf6 {[%clk 0:12:03]} 3. Bf4 {[%clk 0:12:04.6]} 3... e6 {[%clk 0:12:04.2]}
4. e3 {[%clk 0:12:05.2]} 4... Ne4 {[%clk 0:12:05.9]} 5. Ne5 {[%clk 0:12:03.6]}
5... c6 {[%clk 0:12:07.3]} 6. f3 {[%clk 0:11:55.3]} 6... Nf6 {[%clk 0:12:07.8]}
7. Bd3 {[%clk 0:11:54.8]} 7... Bd6 {[%clk 0:12:07.8]} 8. O-O {[%clk 0:11:54.4]}
8... Nh5 {[%clk 0:12:01.3]} 9. Bg3 {[%clk 0:11:46.3]} 9... Nxg3 {[%clk
0:12:02.6]} 10. hxg3 {[%clk 0:11:47.7]} 10... Nd7 {[%clk 0:12:01.6]} 11. f4
{[%clk 0:11:47.1]} 11... Qc7 {[%clk 0:12:01.1]} 12. c3 {[%clk 0:11:45.4]} 12...
Nf6 {[%clk 0:12:02]} 13. Nd2 {[%clk 0:11:45.4]} 13... Bd7 {[%clk 0:12:00.8]} 14.
Qf3 {[%clk 0:11:41.2]} 14... h5 {[%clk 0:11:50.6]} 15. b4 {[%clk 0:11:34.9]}
15... Bxe5 {[%clk 0:11:50.9]} 16. fxe5 {[%clk 0:11:30]} 16... Ng4 {[%clk
0:11:40.2]} 17. Qxf7+ {[%clk 0:11:30.1]} 17... Kd8 {[%clk 0:11:41.5]} 18. Qxg7
{[%clk 0:11:16.9]} 18... Rh6 {[%clk 0:11:40]} 19. Rf8+ {[%clk 0:11:14.4]} 19...
Be8 {[%clk 0:11:40.7]} 20. Rxe8+ {[%clk 0:11:15.6]} 20... Kxe8 {[%clk
0:11:41.2]} 21. Qxc7 {[%clk 0:11:16.8]} 21... Nxe3 {[%clk 0:11:39.6]} 22. Qxb7
{[%clk 0:10:55]} 22... Rh7 {[%clk 0:11:38.1]} 23. Bxh7 {[%clk 0:10:50.1]} 23...
Nxg2 {[%clk 0:11:37.4]} 24. Kxg2 {[%clk 0:10:48.4]} 24... h4 {[%clk 0:11:37.7]}
25. Rf1 {[%clk 0:10:46]} 25... h3+ {[%clk 0:11:39.2]} 26. Kxh3 {[%clk
0:10:46.8]} 26... c5 {[%clk 0:11:39.4]} 27. Bg6+ {[%clk 0:10:43.8]} 27... Kd8
{[%clk 0:11:41.3]} 28. Rf8# {[%clk 0:10:44.6]} 1-0

[Event "Sabato rapido!"]
[Site "Chess.com"]
[Date "2020.05.30"]
[Round "5"]
[White "OMatteoWuO"]
[Black "sergiodone"]
[Result "0-1"]
[WhiteElo "1230"]
[BlackElo "1433"]
[TimeControl "720+3"]
[EndTime "7:46:08 PDT"]
[Termination "sergiodone ha vinto per abbandono"]

1. d4 {[%clk 0:12:02.9]} 1... Nf6 {[%clk 0:11:33.8]} 2. c4 {[%clk 0:12:02]} 2...
c5 {[%clk 0:11:33.8]} 3. d5 {[%clk 0:12:01.7]} 3... b5 {[%clk 0:11:34.6]} 4. b3
{[%clk 0:11:52.4]} 4... bxc4 {[%clk 0:11:36.2]} 5. bxc4 {[%clk 0:11:52.7]} 5...
d6 {[%clk 0:11:37.9]} 6. Nc3 {[%clk 0:11:53.1]} 6... Nbd7 {[%clk 0:11:39.3]} 7.
Rb1 {[%clk 0:11:49.8]} 7... g6 {[%clk 0:11:41]} 8. Nf3 {[%clk 0:11:50.4]} 8...
Bg7 {[%clk 0:11:42.3]} 9. Bd2 {[%clk 0:11:47.2]} 9... O-O {[%clk 0:11:41.4]} 10.
e4 {[%clk 0:11:41.8]} 10... a6 {[%clk 0:11:42.8]} 11. Bd3 {[%clk 0:11:40]} 11...
Qc7 {[%clk 0:11:41.2]} 12. O-O {[%clk 0:11:38.6]} 12... h5 {[%clk 0:11:39]} 13.
h3 {[%clk 0:10:50.5]} 13... Rb8 {[%clk 0:11:39.4]} 14. Qc2 {[%clk 0:10:45.8]}
14... h4 {[%clk 0:11:23.2]} 15. Nxh4 {[%clk 0:10:44]} 15... Ne5 {[%clk
0:11:23.8]} 16. Bf4 {[%clk 0:10:32.2]} 16... Nh5 {[%clk 0:10:56.6]} 17. Bxe5
{[%clk 0:10:31.5]} 17... Bxe5 {[%clk 0:10:57.1]} 18. Nf3 {[%clk 0:10:32.8]}
18... Bg7 {[%clk 0:10:51.9]} 19. g4 {[%clk 0:10:23]} 19... Nf4 {[%clk
0:10:09.4]} 20. Ne2 {[%clk 0:10:18.9]} 20... Nxd3 {[%clk 0:09:48.8]} 21. Qxd3
{[%clk 0:10:19.2]} 21... Bd7 {[%clk 0:09:49.8]} 22. Nh2 {[%clk 0:10:08.3]} 22...
Rb4 {[%clk 0:09:49.7]} 23. f4 {[%clk 0:10:02.4]} 23... Rfb8 {[%clk 0:09:50.8]}
24. Nf3 {[%clk 0:09:56.4]} 24... Qa5 {[%clk 0:09:47.8]} 25. Rxb4 {[%clk
0:09:37.4]} 25... Rxb4 {[%clk 0:09:47.4]} 26. a3 {[%clk 0:09:38.9]} 26... Rb2
{[%clk 0:09:42.7]} 27. Ra1 {[%clk 0:09:28.1]} 27... Ba4 {[%clk 0:09:43.4]} 28.
e5 {[%clk 0:09:05.5]} 28... Rb3 {[%clk 0:09:43.2]} 29. Nc3 {[%clk 0:08:53.1]}
29... Qxc3 {[%clk 0:09:35.2]} 30. Qxc3 {[%clk 0:08:49.5]} 30... Rxc3 {[%clk
0:09:36]} 31. exd6 {[%clk 0:08:46.9]} 31... exd6 {[%clk 0:09:36.6]} 32. Ng5
{[%clk 0:08:42.3]} 32... Rxc4 {[%clk 0:09:30]} 0-1

[Event "Sabato rapido!"]
[Site "Chess.com"]
[Date "2020.05.30"]
[Round "5"]
[White "ottovolante"]
[Black "malberici"]
[Result "0-1"]
[WhiteElo "1004"]
[BlackElo "1348"]
[TimeControl "720+3"]
[EndTime "7:48:15 PDT"]
[Termination "malberici ha vinto per abbandono"]

1. e4 {[%clk 0:12:02.9]} 1... Nf6 {[%clk 0:12:00]} 2. e5 {[%clk 0:12:02.9]} 2...
Nd5 {[%clk 0:12:01.5]} 3. Nf3 {[%clk 0:12:03.5]} 3... d6 {[%clk 0:12:01.9]} 4.
Bc4 {[%clk 0:12:04.4]} 4... e6 {[%clk 0:12:02.8]} 5. Bxd5 {[%clk 0:12:06.1]}
5... exd5 {[%clk 0:12:04.4]} 6. d4 {[%clk 0:11:59.6]} 6... Bg4 {[%clk
0:12:04.6]} 7. h3 {[%clk 0:12:00]} 7... Bh5 {[%clk 0:12:05.8]} 8. Nc3 {[%clk
0:11:55.6]} 8... dxe5 {[%clk 0:12:02.1]} 9. g4 {[%clk 0:11:49.3]} 9... Bg6
{[%clk 0:11:58.8]} 10. Nxe5 {[%clk 0:11:48.3]} 10... Nd7 {[%clk 0:11:50.3]} 11.
Nxg6 {[%clk 0:11:48.5]} 11... fxg6 {[%clk 0:11:47.4]} 12. O-O {[%clk 0:11:42.5]}
12... Be7 {[%clk 0:11:43.5]} 13. Re1 {[%clk 0:11:40.7]} 13... c6 {[%clk
0:11:41]} 14. Bg5 {[%clk 0:11:40.7]} 14... O-O {[%clk 0:11:35.4]} 15. Bxe7
{[%clk 0:11:39.1]} 15... Qc7 {[%clk 0:11:33.5]} 16. Bxf8 {[%clk 0:11:37.2]}
16... Rxf8 {[%clk 0:11:34.3]} 17. Qe2 {[%clk 0:11:24.5]} 17... Nf6 {[%clk
0:11:22.2]} 18. Qe6+ {[%clk 0:11:23.9]} 18... Kh8 {[%clk 0:11:22.3]} 19. Qe3
{[%clk 0:11:05.6]} 19... b6 {[%clk 0:11:16.7]} 20. Qg3 {[%clk 0:11:04.9]} 20...
Qd7 {[%clk 0:11:14.4]} 21. Re2 {[%clk 0:11:01.9]} 21... b5 {[%clk 0:11:11]} 22.
Rae1 {[%clk 0:11:03.3]} 22... b4 {[%clk 0:11:10.6]} 23. Nb1 {[%clk 0:11:04]}
23... Ne4 {[%clk 0:11:09.4]} 24. Rxe4 {[%clk 0:11:01.1]} 24... dxe4 {[%clk
0:11:08.2]} 25. Rxe4 {[%clk 0:11:02.2]} 25... c5 {[%clk 0:10:59.4]} 26. dxc5
{[%clk 0:11:02]} 26... Qd1+ {[%clk 0:10:57.5]} 27. Kg2 {[%clk 0:10:59.9]} 27...
Qxb1 {[%clk 0:10:56.8]} 28. Qe5 {[%clk 0:11:00.3]} 28... Qxc2 {[%clk 0:10:36]}
29. Qe8 {[%clk 0:10:57.8]} 29... Qxf2+ {[%clk 0:10:36.6]} 30. Kh1 {[%clk
0:10:42.3]} 30... Kg8 {[%clk 0:09:46.6]} 31. Qe6+ {[%clk 0:10:41.4]} 31... Kh8
{[%clk 0:09:33.3]} 32. Re1 {[%clk 0:10:30.7]} 32... Qxb2 {[%clk 0:09:29]} 33. c6
{[%clk 0:10:18.3]} 33... Qf2 {[%clk 0:09:15.8]} 34. c7 {[%clk 0:10:19.2]} 34...
Qf3+ {[%clk 0:09:12.5]} 35. Kg1 {[%clk 0:10:18.1]} 35... Qg3+ {[%clk 0:09:10.7]}
36. Kh1 {[%clk 0:10:19.4]} 36... Qxc7 {[%clk 0:09:10.3]} 37. Qe8 {[%clk
0:09:56.7]} 37... Kg8 {[%clk 0:08:44.6]} 38. Qe6+ {[%clk 0:09:57.2]} 38... Qf7
{[%clk 0:08:40.8]} 39. Qxf7+ {[%clk 0:09:56]} 39... Kxf7 {[%clk 0:08:37.8]} 40.
Rf1+ {[%clk 0:09:55.9]} 40... Ke7 {[%clk 0:08:38.9]} 41. Re1+ {[%clk 0:09:53.5]}
41... Kd6 {[%clk 0:08:37.1]} 42. Kg2 {[%clk 0:09:55.5]} 42... a5 {[%clk
0:08:31.8]} 43. Rd1+ {[%clk 0:09:56.2]} 43... Kc5 {[%clk 0:08:32]} 44. Rd7
{[%clk 0:09:56.7]} 44... h5 {[%clk 0:08:25.6]} 45. Rxg7 {[%clk 0:09:54]} 45...
hxg4 {[%clk 0:08:26.6]} 46. Rxg6 {[%clk 0:09:55.3]} 46... gxh3+ {[%clk
0:08:27.7]} 47. Kxh3 {[%clk 0:09:56.8]} 47... Rf3+ {[%clk 0:08:26.9]} 48. Kg4
{[%clk 0:09:58.5]} 48... Ra3 {[%clk 0:08:27.4]} 49. Rg5+ {[%clk 0:09:57.8]}
49... Kb6 {[%clk 0:08:27.8]} 50. Kf4 {[%clk 0:09:58.4]} 50... Rxa2 {[%clk
0:08:27.8]} 51. Ke4 {[%clk 0:10:00.2]} 51... b3 {[%clk 0:08:26.1]} 52. Kd3
{[%clk 0:10:01]} 52... a4 {[%clk 0:08:20.4]} 53. Kc3 {[%clk 0:10:01.9]} 53... b2
{[%clk 0:08:12.1]} 54. Kc2 {[%clk 0:10:01.9]} 54... a3 {[%clk 0:08:12.2]} 55.
Kb1 {[%clk 0:10:02.6]} 55... Ra1+ {[%clk 0:08:13]} 56. Kc2 {[%clk 0:10:04]}
56... b1=Q+ {[%clk 0:08:12.9]} 57. Kc3 {[%clk 0:09:59.8]} 57... Qe1+ {[%clk
0:08:10]} 0-1

[Event "Sabato rapido!"]
[Site "Chess.com"]
[Date "2020.05.30"]
[Round "5"]
[White "SanSecondoPR"]
[Black "fausto2p"]
[Result "1-0"]
[WhiteElo "1335"]
[BlackElo "1181"]
[TimeControl "720+3"]
[EndTime "7:53:18 PDT"]
[Termination "SanSecondoPR ha vinto per abbandono"]

1. e4 {[%clk 0:12:02.9]} 1... e6 {[%clk 0:12:00.5]} 2. e5 {[%clk 0:12:01.5]}
2... Nc6 {[%clk 0:11:39.3]} 3. d4 {[%clk 0:12:01.1]} 3... f6 {[%clk 0:11:19.5]}
4. Qh5+ {[%clk 0:11:52]} 4... g6 {[%clk 0:11:19.7]} 5. Qe2 {[%clk 0:11:37.8]}
5... fxe5 {[%clk 0:11:12.1]} 6. dxe5 {[%clk 0:11:36.7]} 6... Bg7 {[%clk
0:11:12.4]} 7. Nf3 {[%clk 0:11:35.4]} 7... Nge7 {[%clk 0:11:08.9]} 8. Bg5 {[%clk
0:11:34.6]} 8... O-O {[%clk 0:10:56.5]} 9. Nc3 {[%clk 0:11:33]} 9... h6 {[%clk
0:10:44.7]} 10. Bh4 {[%clk 0:11:24.4]} 10... d6 {[%clk 0:10:13.9]} 11. O-O-O
{[%clk 0:11:22.6]} 11... Qe8 {[%clk 0:09:47.6]} 12. exd6 {[%clk 0:11:08.9]}
12... cxd6 {[%clk 0:09:47]} 13. Rxd6 {[%clk 0:11:00.8]} 13... Nf5 {[%clk
0:09:40.1]} 14. Rd1 {[%clk 0:10:51.8]} 14... Nxh4 {[%clk 0:09:25]} 15. Nxh4
{[%clk 0:10:50.5]} 15... Nd4 {[%clk 0:08:51.8]} 16. Qd3 {[%clk 0:10:37.4]} 16...
Nf5 {[%clk 0:07:44]} 17. Nxf5 {[%clk 0:10:27.3]} 17... exf5 {[%clk 0:07:43.8]}
18. Qd5+ {[%clk 0:10:08.5]} 18... Be6 {[%clk 0:07:33.1]} 19. Qxb7 {[%clk
0:10:04.9]} 19... Bxc3 {[%clk 0:07:17.1]} 20. bxc3 {[%clk 0:10:00.9]} 20... Bxa2
{[%clk 0:07:01.3]} 21. c4 {[%clk 0:09:48.7]} 21... Qa4 {[%clk 0:06:47.5]} 22.
Qd5+ {[%clk 0:09:37.8]} 22... Kh8 {[%clk 0:06:39.7]} 23. Qd4+ {[%clk 0:09:23.8]}
23... Kg8 {[%clk 0:06:35.5]} 24. Bd3 {[%clk 0:08:53.9]} 24... Qa3+ {[%clk
0:06:25]} 25. Qb2 {[%clk 0:08:28.1]} 25... Qa4 {[%clk 0:05:59.6]} 26. Qb5 {[%clk
0:07:57.5]} 26... Qa3+ {[%clk 0:05:54.6]} 27. Qb2 {[%clk 0:07:56.5]} 27... Qa4
{[%clk 0:05:53.7]} 28. Qc3 {[%clk 0:07:24.9]} 28... Rab8 {[%clk 0:05:48]} 29.
Kd2 {[%clk 0:07:18.8]} 29... Rfd8 {[%clk 0:05:33.9]} 30. Ra1 {[%clk 0:07:09.1]}
30... Rbc8 {[%clk 0:03:50.5]} 31. Qb2 {[%clk 0:06:52.2]} 31... Qb4+ {[%clk
0:03:39.2]} 32. Qxb4 {[%clk 0:06:46.8]} 1-0

[Event "Sabato rapido!"]
[Site "Chess.com"]
[Date "2020.05.30"]
[Round "5"]
[White "APipitone"]
[Black "caramante"]
[Result "1-0"]
[WhiteElo "1513"]
[BlackElo "1550"]
[TimeControl "720+3"]
[EndTime "7:54:16 PDT"]
[Termination "APipitone ha vinto per abbandono"]

1. e4 {[%clk 0:12:02.9]} 1... c5 {[%clk 0:12:00.3]} 2. Nf3 {[%clk 0:12:02.7]}
2... d6 {[%clk 0:12:00]} 3. d4 {[%clk 0:12:03.5]} 3... cxd4 {[%clk 0:12:01.8]}
4. Nxd4 {[%clk 0:12:03.2]} 4... Nf6 {[%clk 0:12:03.6]} 5. Nc3 {[%clk 0:12:03.8]}
5... a6 {[%clk 0:12:05.7]} 6. a4 {[%clk 0:12:03.6]} 6... e6 {[%clk 0:12:07.1]}
7. Be2 {[%clk 0:12:03.4]} 7... Be7 {[%clk 0:12:08]} 8. O-O {[%clk 0:12:03.5]}
8... Qc7 {[%clk 0:12:08.2]} 9. f4 {[%clk 0:11:59.4]} 9... O-O {[%clk 0:12:08.4]}
10. Kh1 {[%clk 0:11:59.6]} 10... Nc6 {[%clk 0:12:09.2]} 11. Be3 {[%clk
0:11:54.8]} 11... Bd7 {[%clk 0:12:06.6]} 12. Bf3 {[%clk 0:11:52.8]} 12... Rac8
{[%clk 0:11:56.2]} 13. Qe1 {[%clk 0:11:46.6]} 13... Nb4 {[%clk 0:11:45.2]} 14.
Qf2 {[%clk 0:11:04]} 14... e5 {[%clk 0:11:36.3]} 15. fxe5 {[%clk 0:10:58.9]}
15... dxe5 {[%clk 0:11:37.4]} 16. Nf5 {[%clk 0:10:24.9]} 16... Bxf5 {[%clk
0:11:36.5]} 17. exf5 {[%clk 0:10:25.5]} 17... Bc5 {[%clk 0:10:23.1]} 18. Rac1
{[%clk 0:10:19.1]} 18... Bxe3 {[%clk 0:10:23.3]} 19. Qxe3 {[%clk 0:10:18.1]}
19... Rfe8 {[%clk 0:10:20.7]} 20. Be4 {[%clk 0:09:45.3]} 20... Qc5 {[%clk
0:10:00.4]} 21. Qxc5 {[%clk 0:09:31]} 21... Rxc5 {[%clk 0:09:58.7]} 22. Bxb7
{[%clk 0:09:31]} 22... e4 {[%clk 0:09:46.9]} 23. Rf4 {[%clk 0:09:12.6]} 23...
Rce5 {[%clk 0:09:20.5]} 24. g4 {[%clk 0:08:45.9]} 24... h6 {[%clk 0:09:19.4]}
25. Kg2 {[%clk 0:08:27.1]} 25... Nbd5 {[%clk 0:09:08.2]} 26. Nxd5 {[%clk
0:08:20.3]} 26... Nxd5 {[%clk 0:09:08.6]} 27. Bxd5 {[%clk 0:07:49.7]} 27... Rxd5
{[%clk 0:09:07.6]} 28. h4 {[%clk 0:07:41]} 28... e3 {[%clk 0:09:00.8]} 29. Kf3
{[%clk 0:07:12.6]} 29... Rd2 {[%clk 0:09:01.9]} 30. Re4 {[%clk 0:06:57.1]} 30...
Rf2+ {[%clk 0:08:52.4]} 31. Kxe3 {[%clk 0:06:50.7]} 31... Rxe4+ {[%clk
0:08:46.1]} 32. Kxf2 {[%clk 0:06:45.6]} 32... Rxg4 {[%clk 0:08:43.7]} 33. b3
{[%clk 0:06:30.1]} 33... Rf4+ {[%clk 0:08:41.1]} 34. Kg3 {[%clk 0:06:22.5]}
34... Rxf5 {[%clk 0:08:42.5]} 35. c4 {[%clk 0:06:18]} 35... Re5 {[%clk
0:08:32.2]} 36. Kf4 {[%clk 0:06:11.8]} 36... Re6 {[%clk 0:08:16.8]} 37. c5
{[%clk 0:06:10.9]} 37... a5 {[%clk 0:08:11.1]} 38. c6 {[%clk 0:06:10.2]} 38...
Re8 {[%clk 0:08:12.3]} 39. c7 {[%clk 0:06:03.8]} 39... Rc8 {[%clk 0:08:11.9]}
40. Ke4 {[%clk 0:06:04.2]} 40... Kf8 {[%clk 0:08:13.8]} 41. Kd5 {[%clk
0:06:05.2]} 41... Ke7 {[%clk 0:08:15.7]} 42. Kc6 {[%clk 0:06:03]} 42... f5
{[%clk 0:08:15.8]} 43. Re1+ {[%clk 0:05:57.3]} 43... Kf6 {[%clk 0:08:13.7]} 44.
Kd7 {[%clk 0:05:57.9]} 44... Rxc7+ {[%clk 0:08:09.1]} 45. Kxc7 {[%clk
0:05:58.3]} 45... g5 {[%clk 0:08:11]} 46. hxg5+ {[%clk 0:05:59.1]} 46... hxg5
{[%clk 0:08:12.9]} 47. Kd6 {[%clk 0:06:00]} 47... f4 {[%clk 0:08:14.7]} 48. Kc5
{[%clk 0:05:58.8]} 48... Kf5 {[%clk 0:08:16.6]} 49. Kd4 {[%clk 0:05:54.1]} 49...
f3 {[%clk 0:08:10.5]} 50. Ke3 {[%clk 0:05:52.6]} 50... g4 {[%clk 0:08:11.5]} 51.
Kf2 {[%clk 0:05:51.5]} 51... Kf4 {[%clk 0:08:13.4]} 52. Rc1 {[%clk 0:05:48.2]}
52... g3+ {[%clk 0:08:13.9]} 53. Kf1 {[%clk 0:05:44.8]} 53... Ke3 {[%clk
0:08:13.7]} 54. Rc3+ {[%clk 0:05:45.2]} 54... Kf4 {[%clk 0:08:14.1]} 55. Rc4+
{[%clk 0:05:38.6]} 55... Ke3 {[%clk 0:08:14.6]} 56. Rc3+ {[%clk 0:05:35.7]}
56... Ke4 {[%clk 0:08:13.6]} 57. Rc8 {[%clk 0:05:31.4]} 57... Ke3 {[%clk
0:08:08.1]} 58. Re8+ {[%clk 0:05:31.6]} 58... Kf4 {[%clk 0:08:05.9]} 59. Re7
{[%clk 0:05:24.2]} 59... Kg4 {[%clk 0:07:59.5]} 60. Rg7+ {[%clk 0:05:17.7]}
60... Kf4 {[%clk 0:08:00.6]} 61. Ke1 {[%clk 0:05:01.5]} 61... Ke3 {[%clk
0:07:59.9]} 62. Rxg3 {[%clk 0:05:01.3]} 62... Kf4 {[%clk 0:07:54.2]} 63. Rg8
{[%clk 0:04:59.9]} 1-0

[Event "Sabato rapido!"]
[Site "Chess.com"]
[Date "2020.05.30"]
[Round "5"]
[White "Mrtre7"]
[Black "Carbon"]
[Result "0-1"]
[WhiteElo "1462"]
[BlackElo "1762"]
[TimeControl "720+3"]
[EndTime "8:02:18 PDT"]
[Termination "Carbon ha vinto per scaccomatto"]

1. d4 {[%clk 0:12:02.9]} 1... Nf6 {[%clk 0:12:00.4]} 2. c4 {[%clk 0:12:04.1]}
2... g6 {[%clk 0:12:02.2]} 3. Nc3 {[%clk 0:12:04]} 3... Bg7 {[%clk 0:12:04]} 4.
e4 {[%clk 0:12:05.1]} 4... d6 {[%clk 0:12:06.1]} 5. Nf3 {[%clk 0:12:06.4]} 5...
O-O {[%clk 0:12:07.9]} 6. Be2 {[%clk 0:12:08.1]} 6... e5 {[%clk 0:12:08.2]} 7.
Be3 {[%clk 0:12:09.2]} 7... Ng4 {[%clk 0:12:05.8]} 8. Bg5 {[%clk 0:12:10.8]}
8... f6 {[%clk 0:11:59.4]} 9. Bc1 {[%clk 0:12:08.3]} 9... Nc6 {[%clk 0:11:25.8]}
10. d5 {[%clk 0:11:40.1]} 10... Ne7 {[%clk 0:11:24.8]} 11. h3 {[%clk 0:11:26.6]}
11... Nh6 {[%clk 0:11:25.2]} 12. O-O {[%clk 0:11:27.7]} 12... Nf7 {[%clk
0:11:16.2]} 13. b4 {[%clk 0:11:15]} 13... f5 {[%clk 0:10:58.2]} 14. c5 {[%clk
0:11:15.2]} 14... f4 {[%clk 0:10:42.6]} 15. cxd6 {[%clk 0:11:15.7]} 15... cxd6
{[%clk 0:10:39.8]} 16. Ba3 {[%clk 0:11:09.3]} 16... g5 {[%clk 0:10:37.9]} 17.
Rc1 {[%clk 0:11:00.1]} 17... a6 {[%clk 0:09:45]} 18. Nd2 {[%clk 0:08:55.3]}
18... Ng6 {[%clk 0:09:19.7]} 19. Nc4 {[%clk 0:07:35.3]} 19... Nh4 {[%clk
0:08:21.1]} 20. Qb3 {[%clk 0:07:22.5]} 20... f3 {[%clk 0:08:06.7]} 21. gxf3
{[%clk 0:06:52.9]} 21... Bxh3 {[%clk 0:07:46.5]} 22. Rfd1 {[%clk 0:06:23.6]}
22... Ng6 {[%clk 0:07:12.5]} 23. b5 {[%clk 0:05:28.8]} 23... Nf4 {[%clk
0:06:54.7]} 24. bxa6 {[%clk 0:04:59.4]} 24... bxa6 {[%clk 0:06:50.6]} 25. Qb4
{[%clk 0:04:03.3]} 25... Rc8 {[%clk 0:05:37.2]} 26. Nxd6 {[%clk 0:03:46.8]}
26... Rxc3 {[%clk 0:05:20.1]} 27. Nxf7 {[%clk 0:03:07.9]} 27... Rxf7 {[%clk
0:05:04]} 28. Bxa6 {[%clk 0:02:51.7]} 28... Rxc1 {[%clk 0:02:58.4]} 29. Rxc1
{[%clk 0:02:48.8]} 29... Bf8 {[%clk 0:02:52.1]} 30. Qb3 {[%clk 0:01:19.4]} 30...
Bxa3 {[%clk 0:02:31.4]} 31. Qxa3 {[%clk 0:01:05.1]} 31... Qb6 {[%clk 0:01:33.1]}
32. Rc8+ {[%clk 0:01:00.3]} 32... Bxc8 {[%clk 0:01:30.1]} 33. Bxc8 {[%clk
0:00:57.7]} 33... Qb1+ {[%clk 0:01:10.6]} 34. Kh2 {[%clk 0:00:57.6]} 34... Qf1
{[%clk 0:01:05.6]} 35. Qd6 {[%clk 0:00:40.1]} 35... Qg2# {[%clk 0:01:04.7]} 0-1

[Event "Sabato rapido!"]
[Site "Chess.com"]
[Date "2020.05.30"]
[Round "6"]
[White "fausto2p"]
[Black "ottovolante"]
[Result "1-0"]
[WhiteElo "1186"]
[BlackElo "999"]
[TimeControl "720+3"]
[EndTime "8:11:24 PDT"]
[Termination "fausto2p ha vinto per scaccomatto"]

1. d4 {[%clk 0:12:02.9]} 1... e6 {[%clk 0:11:59.1]} 2. c4 {[%clk 0:12:01.1]}
2... Nf6 {[%clk 0:11:58.2]} 3. Nc3 {[%clk 0:12:00.5]} 3... Bb4 {[%clk
0:11:53.7]} 4. Nf3 {[%clk 0:11:42.8]} 4... Bxc3+ {[%clk 0:11:53.7]} 5. bxc3
{[%clk 0:11:42.8]} 5... O-O {[%clk 0:11:46.5]} 6. Qc2 {[%clk 0:11:30.6]} 6... b6
{[%clk 0:11:26.6]} 7. e4 {[%clk 0:11:26]} 7... Bb7 {[%clk 0:11:27.2]} 8. Bd3
{[%clk 0:11:13.5]} 8... d6 {[%clk 0:11:18.9]} 9. O-O {[%clk 0:11:06.5]} 9...
Nbd7 {[%clk 0:11:15.2]} 10. Bg5 {[%clk 0:10:33.7]} 10... Re8 {[%clk 0:11:13.2]}
11. e5 {[%clk 0:10:30.4]} 11... dxe5 {[%clk 0:11:10.5]} 12. dxe5 {[%clk
0:10:29.1]} 12... g6 {[%clk 0:11:07.3]} 13. exf6 {[%clk 0:10:26.1]} 13... Bxf3
{[%clk 0:11:04.7]} 14. gxf3 {[%clk 0:10:23.6]} 14... Ne5 {[%clk 0:11:06.3]} 15.
Be4 {[%clk 0:10:02.1]} 15... Rb8 {[%clk 0:10:56.5]} 16. Rad1 {[%clk 0:09:25.6]}
16... Qc8 {[%clk 0:10:56.4]} 17. Qe2 {[%clk 0:08:06.6]} 17... Qa6 {[%clk
0:10:53.4]} 18. Bh4 {[%clk 0:07:24.8]} 18... Red8 {[%clk 0:10:42.1]} 19. Qe3
{[%clk 0:07:19.7]} 19... Nxc4 {[%clk 0:10:32.8]} 20. Qh6 {[%clk 0:07:19.8]}
20... Rxd1 {[%clk 0:10:05.7]} 21. Qg7# {[%clk 0:07:20.5]} 1-0

[Event "Sabato rapido!"]
[Site "Chess.com"]
[Date "2020.05.30"]
[Round "6"]
[White "SanSecondoPR"]
[Black "pedrak"]
[Result "0-1"]
[WhiteElo "1333"]
[BlackElo "1701"]
[TimeControl "720+3"]
[EndTime "8:13:01 PDT"]
[Termination "pedrak ha vinto per abbandono"]

1. e4 {[%clk 0:12:02.9]} 1... d6 {[%clk 0:11:56.6]} 2. Nf3 {[%clk 0:11:52.3]}
2... e5 {[%clk 0:11:56.8]} 3. d4 {[%clk 0:11:51.7]} 3... exd4 {[%clk 0:11:57.2]}
4. Nxd4 {[%clk 0:11:51.4]} 4... Nf6 {[%clk 0:11:58.5]} 5. Bg5 {[%clk 0:11:46.6]}
5... Be7 {[%clk 0:11:59.1]} 6. Nc3 {[%clk 0:11:40.2]} 6... O-O {[%clk
0:11:57.9]} 7. Nf5 {[%clk 0:11:38]} 7... Bxf5 {[%clk 0:11:56.8]} 8. exf5 {[%clk
0:11:35.9]} 8... Re8 {[%clk 0:11:49.8]} 9. Be2 {[%clk 0:11:36.6]} 9... c6 {[%clk
0:11:41.2]} 10. O-O {[%clk 0:11:37.1]} 10... d5 {[%clk 0:11:38]} 11. Bf3 {[%clk
0:11:29.6]} 11... Nbd7 {[%clk 0:11:35.6]} 12. Re1 {[%clk 0:11:25.7]} 12... Bb4
{[%clk 0:11:25.9]} 13. a3 {[%clk 0:11:21.3]} 13... Bxc3 {[%clk 0:11:25.8]} 14.
bxc3 {[%clk 0:11:17.8]} 14... Rxe1+ {[%clk 0:11:25]} 15. Qxe1 {[%clk 0:11:17.3]}
15... Qa5 {[%clk 0:11:26.1]} 16. Rb1 {[%clk 0:10:51.6]} 16... b6 {[%clk
0:11:18.7]} 17. Bd2 {[%clk 0:10:13.2]} 17... Qxa3 {[%clk 0:11:10.9]} 18. g4
{[%clk 0:10:00.6]} 18... Re8 {[%clk 0:11:07.8]} 19. Qd1 {[%clk 0:09:53.9]} 19...
Qd6 {[%clk 0:11:03.9]} 20. Bg2 {[%clk 0:09:40.2]} 20... Ne4 {[%clk 0:10:52.6]}
21. Bxe4 {[%clk 0:09:27.6]} 21... Rxe4 {[%clk 0:10:52.3]} 22. Be3 {[%clk
0:09:19]} 22... h6 {[%clk 0:10:40.6]} 23. Ra1 {[%clk 0:08:59]} 23... a5 {[%clk
0:10:28.8]} 24. Rb1 {[%clk 0:08:45.9]} 24... b5 {[%clk 0:10:25.8]} 25. c4 {[%clk
0:08:35.4]} 25... Rxc4 {[%clk 0:10:23.3]} 26. Qd2 {[%clk 0:08:04.1]} 26... Rxg4+
{[%clk 0:10:17.1]} 27. Kh1 {[%clk 0:07:52.6]} 27... d4 {[%clk 0:10:15.7]} 28.
Rg1 {[%clk 0:07:19]} 28... Qd5+ {[%clk 0:10:14.8]} 29. f3 {[%clk 0:07:07.4]}
29... Qxf3+ {[%clk 0:10:14.5]} 30. Rg2 {[%clk 0:07:01.3]} 30... dxe3 {[%clk
0:10:11.7]} 0-1